Workbook

Sheet Feuil1
A3: Caburants | B3: Super 1 | C3: super 2 | D3: super3 | F3: Gasoil 1 | G3: Gasoil 2 | H3: GASOIL 3
A4: index arrivée | B4: 25 | C4: 45 | D4: 60 | F4: 14 | G4: 12 | H4: 58
A5: index départ | B5: 15 | C5: 32 | D5: 45 | F5: 11 | G5: 10 | H5: 20
A6: sorties | B6: =B4-B5 -> 10 | C6: =C4-C5 -> 13 | D6: 15 | F6: =F4-F5 -> 3 | G6: =G4-G5 -> 2 | H6: =H4-H5 -> 38
A7: retour en cuve | B7: 0 | C7: 0 | D7: 0 | F7: 0 | G7: 0 | H7: 0
A8: vente par pome | B8: =B6-B7 -> 10 | C8: =C6-C7 -> 13 | D8: =D6-D7 -> 15 | F8: =F6-F7 -> 3 | G8: =G6-G7 -> 2 | H8: =H6-H7 -> 38
A9: sorties par produit | B9: =B8+C8 -> 23 | D9: =D8+E8 -> 15 | F9: =F8+G8 -> 5 | H9: =H8 -> 38
A10: Chiffres d'affaire par produit | B10: =B9*670 -> 15410 | D10: =D9*630 -> 9450 | F10: =F9*570 -> 2850 | H10: =H9*540 -> 20520
A11: Chiffres d'affaire par carburant | B11: =B10+D10 -> 24860 | F11: =F10+H10 -> 23370
A12: Recette Lubrifiant | B12: =Q15 -> 0
A13: Recette Total | B13: =B11 -> 24860 | F13: =F11 -> 23370
A14: Credit | B14: SUPER | C14: 0 | D14: =C14*670 -> 0 | F14: Gasoil | G14: 20 | H14: =G14*540 -> 10800
B15: SUPER | D15: =C15*670 -> 0 | F15: Gasoil | G15: 0 | H15: =G15*540 -> 0
B16: SUPER | D16: =C16*630 -> 0 | F16: Gasoil | G16: 0 | H16: =G16*570 -> 0
C17: =SUM(D14:D16) -> 0 | G17: =SUM(H14:H16) -> 10800
B18: =B13-C17 -> 24860 | F18: =F13-G17 -> 12570
A19: Vente au comptant | B19: =B18+F18+B12 -> 37430

Sheet 29-01-2020
A1: Retour | D1: JOURNAL DE VENTES
A4: Colonne1 | B4: Colonne2 | C4: Colonne3 | D4: Colonne4 | F4: Colonne6 | G4: Colonne7 | H4: Colonne8 | J4: Colonne10 | K4: Colonne11 | L4: Colonne12 | M4: Colonne13 | Q4: Récapitulatif des ventes
A5: CARBURANTS | B5: SUPER 1 | C5: SUPER 2 | D5: SUPER 3 | F5: GASOIL 1 | G5: GASOIL 2 | H5: Gasoil3 | K5: VENTE à CREDITS
A6: Index arrivée | B6: 38174 | C6: 6576 | D6: 27398 | F6: 12385 | G6: 5224 | H6: 98302 | J6: CLIENTS | K6: PRODUIT | L6: QUANTITEE | M6: MONTANT | Q6: Produits | T6: Litrage | V6: P.U | X6: Montant
A7: Index départ | B7: 38008 | C7: 6551 | D7: 27383 | F7: 12380 | G7: 5224 | H7: 98052 | M7: =Tableau3734192666688089935[[#This Row],[Colonne12]]*570 -> 0
A8: Sorties | B8: =B6-B7 -> 166 | C8: =C6-C7 -> 25 | D8: =D6-D7 -> 15 | F8: =F6-F7 -> 5 | G8: =G6-G7 -> 0 | H8: =H6-H7 -> 250 | M8: =Tableau3734192666688089935[[#This Row],[Colonne12]]*570 -> 0 | Q8: Super en Gros | T8: =D10 -> 15 | V8: 0 | X8: =T8*V8 -> 0
A9: Retour en cuve | M9: =Tableau3734192666688089935[[#This Row],[Colonne12]]*570 -> 0
A10: Vente par pompe | B10: =B8-B9 -> 166 | C10: =C8-C9 -> 25 | D10: =D8-D9 -> 15 | F10: =F8-F9 -> 5 | G10: =G8-G9 -> 0 | H10: =H8-H9 -> 250 | M10: =Tableau3734192666688089935[[#This Row],[Colonne12]]*540 -> 0 | Q10: Super en detail | T10: =SUM(B10:C10) -> 191 | V10: 0 | X10: =T10*V10 -> 0
A11: Vente par produit | B11: =SUM(B10:D10) -> 206 | F11: =SUM(F10:H10) -> 255 | M11: =Tableau3734192666688089935[[#This Row],[Colonne12]]*540 -> 0
M12: =Tableau3734192666688089935[[#This Row],[Colonne12]]*540 -> 0 | Q12: Gasoil en Gros | T12: =H10 -> 250 | V12: 0 | X12: =T12*V12 -> 0
A13: Stock jauge ouverture | B13: 0 | M13: =Tableau3734192666688089935[[#This Row],[Colonne12]]*540 -> 0
A14: Entrée de stock | M14: =Tableau3734192666688089935[[#This Row],[Colonne12]]*540 -> 0 | Q14: Gasoil en detail | T14: =SUM(F10:G10) -> 5 | V14: 0 | X14: =T14*V14 -> 0
A15: Cumul de stock | B15: =B13+B14 -> 0 | F15: =F13+F14 -> 0 | M15: =Tableau3734192666688089935[[#This Row],[Colonne12]]*670 -> 0
A16: Sorties par produit | B16: =B11 -> 206 | F16: =F11 -> 255 | M16: =Tableau3734192666688089935[[#This Row],[Colonne12]]*670 -> 0 | Q16: Total Carburants | X16: =SUM(X8:Z15) -> 0
A17: Stock theorique | B17: =B15-B16 -> -206 | F17: =F15-F16 -> -255 | M17: =Tableau3734192666688089935[[#This Row],[Colonne12]]*670 -> 0
A18: Stock jauge fermeture | B18: 0 | F18: 0 | J18: TOTAL | M18: =SUBTOTAL(109,M5:M17) -> 0 | Q18: 1.Recette carburant | X18: =X16 -> 0
A19: Ecart | B19: =B18-B17 -> 206 | F19: =F18-F17 -> 255 | Q19: 2.Recette Lubrifiants | X19: =G40 -> 0
A20: Lubrifiants | Q20: 3.recette Boutique | X20: =K40 -> 0
A21: Désignation | B21: Stock ouverture | C21: Entrée | D21: Stock total | E21: Stock fermeture | F21: Vente | G21: P.U | H21: Montant | J21: ACTIVTES DES BAIES | M21: DETAIL DES CREDITS PAYES CE JOURS CI | Q21: 4.Cumul recettes | X21: =SUM(X18:Z20) -> 0
A22: PERFO HDX 700 | B22: 0 | C22: 0 | D22: =SUM(B22:C23) -> 0 | E22: 0 | F22: =D22-E22 -> 0 | H22: =F22*G22 -> 0 | J22: DESIGNATION | K22: MONTANT | M22: NOM & PRENOM DU CLIENT | O22: MONTANT | Q22: 5.Credit de la journée (à deduire) | X22: =M18 -> 0
Q23: 6.Vente au comptant | X23: =X21-X22 -> 0
A24: ATLANTIS 5000 (4L) | B24: 0 | C24: 0 | D24: =SUM(B24:C25) -> 0 | E24: 0 | F24: =D24-E24 -> 0 | H24: =F24*G24 -> 0 | Q24: 7.Credits anterieurs ancaissés | X24: =O39 -> 0
Q25: 8.Total des encaissements | X25: =X23+X24 -> 0
A26: ATLANTIS 5000 (1L) | B26: 0 | C26: 0 | D26: =SUM(B26:C27) -> 0 | E26: 0 | F26: =D26-E26 -> 0 | H26: =F26*G26 -> 0 | Q26: DEPENSE DE LA JOURNEE (A DEDUIRE)
A28: EVOLUTION 300 (5L) | B28: 0 | C28: 0 | D28: =SUM(B28:C29) -> 0 | E28: 0 | F28: =D28-E28 -> 0 | H28: =F28*G28 -> 0 | Q28: RATION
Q29: APPRO-GROUPE | X29: =T29*570 -> 0
A30: EVOLUTION 300 (1L) | B30: 0 | C30: 0 | D30: =SUM(B30:C31) -> 0 | E30: 0 | F30: =D30-E30 -> 0 | H30: =F30*G30 -> 0 | Q30: FACTURES
Q31: DIVERS
A32: GEAR ELF | B32: 0 | C32: 0 | D32: =SUM(B32:C33) -> 0 | E32: 0 | F32: =D32-E32 -> 0 | H32: =F32*G32 -> 0 | Q32: REMISE
Q33: SALAIRE ET DEPLACEMENT GERANT
A34: ELFMATIC | B34: 0 | C34: 0 | D34: =SUM(B34:C35) -> 0 | E34: 0 | F34: =D34-E34 -> 0 | H34: =F34*G34 -> 0 | Q34: Total des depenses | X34: =SUM(X28:Z33) -> 0
A36: BRAKE FLUID | B36: 0 | C36: 0 | D36: =SUM(B36:C37) -> 0 | E36: 0 | F36: =D36-E36 -> 0 | H36: =F36*G36 -> 0 | Q36: 10.Montant net en caisse | X36: =X25-X34 -> 0
Q37: 11.Versement banque
A38: ATF | B38: 0 | C38: 0 | D38: =SUM(B38:C39) -> 0 | E38: 0 | F38: =D38-E38 -> 0 | H38: =F38*G38 -> 0 | Q38: 12.Solde en caisse fin journée | X38: =X36-X37 -> 0
M39: TOTAL | O39: =SUM(O23:O38) -> 0 | Q39: 13.Ecart de caisse
A40: TOTAL | G40: =SUM(H22:H39) -> 0 | K40: =SUM(K23:K38) -> 0 | Q40: OBSERVATIONS

Sheet 30-01-2020
A1: Retour | D1: JOURNAL DE VENTES
A4: Colonne1 | B4: Colonne2 | C4: Colonne3 | D4: Colonne4 | F4: Colonne6 | G4: Colonne7 | H4: Colonne8 | J4: Colonne10 | K4: Colonne11 | L4: Colonne12 | M4: Colonne13 | Q4: Récapitulatif des ventes
A5: CARBURANTS | B5: SUPER 1 | C5: SUPER 2 | D5: SUPER 3 | F5: GASOIL 1 | G5: GASOIL 2 | H5: Gasoil3 | K5: VENTE à CREDITS
A6: Index arrivée | B6: 38174 | C6: 6576 | D6: 27398 | F6: 12385 | G6: 5224 | H6: 98302 | J6: CLIENTS | K6: PRODUIT | L6: QUANTITEE | M6: MONTANT | Q6: Produits | T6: Litrage | V6: P.U | X6: Montant
A7: Index départ | B7: 38008 | C7: 6551 | D7: 27383 | F7: 12380 | G7: 5224 | H7: 98052 | M7: =Tableau37341926666880899353[[#This Row],[Colonne12]]*570 -> 0
A8: Sorties | B8: =B6-B7 -> 166 | C8: =C6-C7 -> 25 | D8: =D6-D7 -> 15 | F8: =F6-F7 -> 5 | G8: =G6-G7 -> 0 | H8: =H6-H7 -> 250 | M8: =Tableau37341926666880899353[[#This Row],[Colonne12]]*570 -> 0 | Q8: Super en Gros | T8: =D10 -> 15 | V8: 0 | X8: =T8*V8 -> 0
A9: Retour en cuve | M9: =Tableau37341926666880899353[[#This Row],[Colonne12]]*570 -> 0
A10: Vente par pompe | B10: =B8-B9 -> 166 | C10: =C8-C9 -> 25 | D10: =D8-D9 -> 15 | F10: =F8-F9 -> 5 | G10: =G8-G9 -> 0 | H10: =H8-H9 -> 250 | M10: =Tableau37341926666880899353[[#This Row],[Colonne12]]*540 -> 0 | Q10: Super en detail | T10: =SUM(B10:C10) -> 191 | V10: 0 | X10: =T10*V10 -> 0
A11: Vente par produit | B11: =SUM(B10:D10) -> 206 | F11: =SUM(F10:H10) -> 255 | M11: =Tableau37341926666880899353[[#This Row],[Colonne12]]*540 -> 0
M12: =Tableau37341926666880899353[[#This Row],[Colonne12]]*540 -> 0 | Q12: Gasoil en Gros | T12: =H10 -> 250 | V12: 0 | X12: =T12*V12 -> 0
A13: Stock jauge ouverture | B13: 0 | M13: =Tableau37341926666880899353[[#This Row],[Colonne12]]*540 -> 0
A14: Entrée de stock | M14: =Tableau37341926666880899353[[#This Row],[Colonne12]]*540 -> 0 | Q14: Gasoil en detail | T14: =SUM(F10:G10) -> 5 | V14: 0 | X14: =T14*V14 -> 0
A15: Cumul de stock | B15: =B13+B14 -> 0 | F15: =F13+F14 -> 0 | M15: =Tableau37341926666880899353[[#This Row],[Colonne12]]*670 -> 0
A16: Sorties par produit | B16: =B11 -> 206 | F16: =F11 -> 255 | M16: =Tableau37341926666880899353[[#This Row],[Colonne12]]*670 -> 0 | Q16: Total Carburants | X16: =SUM(X8:Z15) -> 0
A17: Stock theorique | B17: =B15-B16 -> -206 | F17: =F15-F16 -> -255 | M17: =Tableau37341926666880899353[[#This Row],[Colonne12]]*670 -> 0
A18: Stock jauge fermeture | B18: 0 | F18: 0 | J18: TOTAL | M18: =SUBTOTAL(109,M5:M17) -> 0 | Q18: 1.Recette carburant | X18: =X16 -> 0
A19: Ecart | B19: =B18-B17 -> 206 | F19: =F18-F17 -> 255 | Q19: 2.Recette Lubrifiants | X19: =G40 -> 0
A20: Lubrifiants | Q20: 3.recette Boutique | X20: =K40 -> 0
A21: Désignation | B21: Stock ouverture | C21: Entrée | D21: Stock total | E21: Stock fermeture | F21: Vente | G21: P.U | H21: Montant | J21: ACTIVTES DES BAIES | M21: DETAIL DES CREDITS PAYES CE JOURS CI | Q21: 4.Cumul recettes | X21: =SUM(X18:Z20) -> 0
A22: PERFO HDX 700 | B22: 0 | C22: 0 | D22: =SUM(B22:C23) -> 0 | E22: 0 | F22: =D22-E22 -> 0 | H22: =F22*G22 -> 0 | J22: DESIGNATION | K22: MONTANT | M22: NOM & PRENOM DU CLIENT | O22: MONTANT | Q22: 5.Credit de la journée (à deduire) | X22: =M18 -> 0
Q23: 6.Vente au comptant | X23: =X21-X22 -> 0
A24: ATLANTIS 5000 (4L) | B24: 0 | C24: 0 | D24: =SUM(B24:C25) -> 0 | E24: 0 | F24: =D24-E24 -> 0 | H24: =F24*G24 -> 0 | Q24: 7.Credits anterieurs ancaissés | X24: =O39 -> 0
Q25: 8.Total des encaissements | X25: =X23+X24 -> 0
A26: ATLANTIS 5000 (1L) | B26: 0 | C26: 0 | D26: =SUM(B26:C27) -> 0 | E26: 0 | F26: =D26-E26 -> 0 | H26: =F26*G26 -> 0 | Q26: DEPENSE DE LA JOURNEE (A DEDUIRE)
A28: EVOLUTION 300 (5L) | B28: 0 | C28: 0 | D28: =SUM(B28:C29) -> 0 | E28: 0 | F28: =D28-E28 -> 0 | H28: =F28*G28 -> 0 | Q28: RATION
Q29: APPRO-GROUPE | X29: =T29*570 -> 0
A30: EVOLUTION 300 (1L) | B30: 0 | C30: 0 | D30: =SUM(B30:C31) -> 0 | E30: 0 | F30: =D30-E30 -> 0 | H30: =F30*G30 -> 0 | Q30: FACTURES
Q31: DIVERS
A32: GEAR ELF | B32: 0 | C32: 0 | D32: =SUM(B32:C33) -> 0 | E32: 0 | F32: =D32-E32 -> 0 | H32: =F32*G32 -> 0 | Q32: REMISE
Q33: SALAIRE ET DEPLACEMENT GERANT
A34: ELFMATIC | B34: 0 | C34: 0 | D34: =SUM(B34:C35) -> 0 | E34: 0 | F34: =D34-E34 -> 0 | H34: =F34*G34 -> 0 | Q34: Total des depenses | X34: =SUM(X28:Z33) -> 0
A36: BRAKE FLUID | B36: 0 | C36: 0 | D36: =SUM(B36:C37) -> 0 | E36: 0 | F36: =D36-E36 -> 0 | H36: =F36*G36 -> 0 | Q36: 10.Montant net en caisse | X36: =X25-X34 -> 0
Q37: 11.Versement banque
A38: ATF | B38: 0 | C38: 0 | D38: =SUM(B38:C39) -> 0 | E38: 0 | F38: =D38-E38 -> 0 | H38: =F38*G38 -> 0 | Q38: 12.Solde en caisse fin journée | X38: =X36-X37 -> 0
M39: TOTAL | O39: =SUM(O23:O38) -> 0 | Q39: 13.Ecart de caisse
A40: TOTAL | G40: =SUM(H22:H39) -> 0 | K40: =SUM(K23:K38) -> 0 | Q40: OBSERVATIONS

Sheet 31-01-2020
A1: Retour | D1: JOURNAL DE VENTES
A4: Colonne1 | B4: Colonne2 | C4: Colonne3 | D4: Colonne4 | F4: Colonne6 | G4: Colonne7 | H4: Colonne8 | J4: Colonne10 | K4: Colonne11 | L4: Colonne12 | M4: Colonne13 | Q4: Récapitulatif des ventes
A5: CARBURANTS | B5: SUPER 1 | C5: SUPER 2 | D5: SUPER 3 | F5: GASOIL 1 | G5: GASOIL 2 | H5: Gasoil3 | K5: VENTE à CREDITS
A6: Index arrivée | B6: 25 | C6: 45 | D6: 60 | F6: 14 | G6: 12 | H6: 58 | J6: CLIENTS | K6: PRODUIT | L6: QUANTITEE | M6: MONTANT | Q6: Produits | T6: Litrage | V6: P.U | X6: Montant
A7: Index départ | B7: 15 | C7: 32 | D7: 45 | F7: 11 | G7: 10 | H7: 20 | M7: =Tableau373419266668808993534[[#This Row],[Colonne12]]*570 -> 0
A8: Sorties | B8: =B6-B7 -> 10 | C8: =C6-C7 -> 13 | D8: =D6-D7 -> 15 | F8: =F6-F7 -> 3 | G8: =G6-G7 -> 2 | H8: =H6-H7 -> 38 | M8: =Tableau373419266668808993534[[#This Row],[Colonne12]]*570 -> 0 | Q8: Super en Gros | T8: =D10 -> 15 | V8: 0 | X8: =T8*V8 -> 0
A9: Retour en cuve | M9: =Tableau373419266668808993534[[#This Row],[Colonne12]]*570 -> 0
A10: Vente par pompe | B10: =B8-B9 -> 10 | C10: =C8-C9 -> 13 | D10: =D8-D9 -> 15 | F10: =F8-F9 -> 3 | G10: =G8-G9 -> 2 | H10: =H8-H9 -> 38 | M10: =Tableau373419266668808993534[[#This Row],[Colonne12]]*540 -> 0 | Q10: Super en detail | T10: =SUM(B10:C10) -> 23 | V10: 0 | X10: =T10*V10 -> 0
A11: Vente par produit | B11: =SUM(B10:D10) -> 38 | F11: =SUM(F10:H10) -> 43 | M11: =Tableau373419266668808993534[[#This Row],[Colonne12]]*540 -> 0
M12: =Tableau373419266668808993534[[#This Row],[Colonne12]]*540 -> 0 | Q12: Gasoil en Gros | T12: =H10 -> 38 | V12: 0 | X12: =T12*V12 -> 0
A13: Stock jauge ouverture | B13: 0 | M13: =Tableau373419266668808993534[[#This Row],[Colonne12]]*540 -> 0
A14: Entrée de stock | M14: =Tableau373419266668808993534[[#This Row],[Colonne12]]*540 -> 0 | Q14: Gasoil en detail | T14: =SUM(F10:G10) -> 5 | V14: 0 | X14: =T14*V14 -> 0
A15: Cumul de stock | B15: =B13+B14 -> 0 | F15: =F13+F14 -> 0 | M15: =Tableau373419266668808993534[[#This Row],[Colonne12]]*670 -> 0
A16: Sorties par produit | B16: =B11 -> 38 | F16: =F11 -> 43 | M16: =Tableau373419266668808993534[[#This Row],[Colonne12]]*670 -> 0 | Q16: Total Carburants | X16: =SUM(X8:Z15) -> 0
A17: Stock theorique | B17: =B15-B16 -> -38 | F17: =F15-F16 -> -43 | M17: =Tableau373419266668808993534[[#This Row],[Colonne12]]*670 -> 0
A18: Stock jauge fermeture | B18: 0 | F18: 0 | J18: TOTAL | M18: =SUBTOTAL(109,M5:M17) -> 0 | Q18: 1.Recette carburant | X18: =X16 -> 0
A19: Ecart | B19: =B18-B17 -> 38 | F19: =F18-F17 -> 43 | Q19: 2.Recette Lubrifiants | X19: =G40 -> 0
A20: Lubrifiants | Q20: 3.recette Boutique | X20: =K40 -> 0
A21: Désignation | B21: Stock ouverture | C21: Entrée | D21: Stock total | E21: Stock fermeture | F21: Vente | G21: P.U | H21: Montant | J21: ACTIVTES DES BAIES | M21: DETAIL DES CREDITS PAYES CE JOURS CI | Q21: 4.Cumul recettes | X21: =SUM(X18:Z20) -> 0
A22: PERFO HDX 700 | B22: 0 | C22: 0 | D22: =SUM(B22:C23) -> 0 | E22: 0 | F22: =D22-E22 -> 0 | H22: =F22*G22 -> 0 | J22: DESIGNATION | K22: MONTANT | M22: NOM & PRENOM DU CLIENT | O22: MONTANT | Q22: 5.Credit de la journée (à deduire) | X22: =M18 -> 0
Q23: 6.Vente au comptant | X23: =X21-X22 -> 0
A24: ATLANTIS 5000 (4L) | B24: 0 | C24: 0 | D24: =SUM(B24:C25) -> 0 | E24: 0 | F24: =D24-E24 -> 0 | H24: =F24*G24 -> 0 | Q24: 7.Credits anterieurs ancaissés | X24: =O39 -> 0
Q25: 8.Total des encaissements | X25: =X23+X24 -> 0
A26: ATLANTIS 5000 (1L) | B26: 0 | C26: 0 | D26: =SUM(B26:C27) -> 0 | E26: 0 | F26: =D26-E26 -> 0 | H26: =F26*G26 -> 0 | Q26: DEPENSE DE LA JOURNEE (A DEDUIRE)
A28: EVOLUTION 300 (5L) | B28: 0 | C28: 0 | D28: =SUM(B28:C29) -> 0 | E28: 0 | F28: =D28-E28 -> 0 | H28: =F28*G28 -> 0 | Q28: RATION
Q29: APPRO-GROUPE | X29: =T29*570 -> 0
A30: EVOLUTION 300 (1L) | B30: 0 | C30: 0 | D30: =SUM(B30:C31) -> 0 | E30: 0 | F30: =D30-E30 -> 0 | H30: =F30*G30 -> 0 | Q30: FACTURES
Q31: DIVERS
A32: GEAR ELF | B32: 0 | C32: 0 | D32: =SUM(B32:C33) -> 0 | E32: 0 | F32: =D32-E32 -> 0 | H32: =F32*G32 -> 0 | Q32: REMISE
Q33: SALAIRE ET DEPLACEMENT GERANT
A34: ELFMATIC | B34: 0 | C34: 0 | D34: =SUM(B34:C35) -> 0 | E34: 0 | F34: =D34-E34 -> 0 | H34: =F34*G34 -> 0 | Q34: Total des depenses | X34: =SUM(X28:Z33) -> 0
A36: BRAKE FLUID | B36: 0 | C36: 0 | D36: =SUM(B36:C37) -> 0 | E36: 0 | F36: =D36-E36 -> 0 | H36: =F36*G36 -> 0 | Q36: 10.Montant net en caisse | X36: =X25-X34 -> 0
Q37: 11.Versement banque
A38: ATF | B38: 0 | C38: 0 | D38: =SUM(B38:C39) -> 0 | E38: 0 | F38: =D38-E38 -> 0 | H38: =F38*G38 -> 0 | Q38: 12.Solde en caisse fin journée | X38: =X36-X37 -> 0
M39: TOTAL | O39: =SUM(O23:O38) -> 0 | Q39: 13.Ecart de caisse
A40: TOTAL | G40: =SUM(H22:H39) -> 0 | K40: =SUM(K23:K38) -> 0 | Q40: OBSERVATIONS

Sheet 01-02-2020
A1: Retour | D1: JOURNAL DE VENTES
A4: Colonne1 | B4: Colonne2 | C4: Colonne3 | D4: Colonne4 | F4: Colonne6 | G4: Colonne7 | H4: Colonne8 | J4: Colonne10 | K4: Colonne11 | L4: Colonne12 | M4: Colonne13 | Q4: Récapitulatif des ventes
A5: CARBURANTS | B5: SUPER 1 | C5: SUPER 2 | D5: SUPER 3 | F5: GASOIL 1 | G5: GASOIL 2 | H5: Gasoil3 | K5: VENTE à CREDITS
A6: Index arrivée | B6: 38174 | C6: 6576 | D6: 27398 | F6: 12385 | G6: 5224 | H6: 98302 | J6: CLIENTS | K6: PRODUIT | L6: QUANTITEE | M6: MONTANT | Q6: Produits | T6: Litrage | V6: P.U | X6: Montant
A7: Index départ | B7: 38008 | C7: 6551 | D7: 27383 | F7: 12380 | G7: 5224 | H7: 98052 | M7: =Tableau3734192666688089935345[[#This Row],[Colonne12]]*570 -> 0
A8: Sorties | B8: =B6-B7 -> 166 | C8: =C6-C7 -> 25 | D8: =D6-D7 -> 15 | F8: =F6-F7 -> 5 | G8: =G6-G7 -> 0 | H8: =H6-H7 -> 250 | M8: =Tableau3734192666688089935345[[#This Row],[Colonne12]]*570 -> 0 | Q8: Super en Gros | T8: =D10 -> 15 | V8: 0 | X8: =T8*V8 -> 0
A9: Retour en cuve | M9: =Tableau3734192666688089935345[[#This Row],[Colonne12]]*570 -> 0
A10: Vente par pompe | B10: =B8-B9 -> 166 | C10: =C8-C9 -> 25 | D10: =D8-D9 -> 15 | F10: =F8-F9 -> 5 | G10: =G8-G9 -> 0 | H10: =H8-H9 -> 250 | M10: =Tableau3734192666688089935345[[#This Row],[Colonne12]]*540 -> 0 | Q10: Super en detail | T10: =SUM(B10:C10) -> 191 | V10: 0 | X10: =T10*V10 -> 0
A11: Vente par produit | B11: =SUM(B10:D10) -> 206 | F11: =SUM(F10:H10) -> 255 | M11: =Tableau3734192666688089935345[[#This Row],[Colonne12]]*540 -> 0
M12: =Tableau3734192666688089935345[[#This Row],[Colonne12]]*540 -> 0 | Q12: Gasoil en Gros | T12: =H10 -> 250 | V12: 0 | X12: =T12*V12 -> 0
A13: Stock jauge ouverture | B13: 0 | M13: =Tableau3734192666688089935345[[#This Row],[Colonne12]]*540 -> 0
A14: Entrée de stock | M14: =Tableau3734192666688089935345[[#This Row],[Colonne12]]*540 -> 0 | Q14: Gasoil en detail | T14: =SUM(F10:G10) -> 5 | V14: 0 | X14: =T14*V14 -> 0
A15: Cumul de stock | B15: =B13+B14 -> 0 | F15: =F13+F14 -> 0 | M15: =Tableau3734192666688089935345[[#This Row],[Colonne12]]*670 -> 0
A16: Sorties par produit | B16: =B11 -> 206 | F16: =F11 -> 255 | M16: =Tableau3734192666688089935345[[#This Row],[Colonne12]]*670 -> 0 | Q16: Total Carburants | X16: =SUM(X8:Z15) -> 0
A17: Stock theorique | B17: =B15-B16 -> -206 | F17: =F15-F16 -> -255 | M17: =Tableau3734192666688089935345[[#This Row],[Colonne12]]*670 -> 0
A18: Stock jauge fermeture | B18: 0 | F18: 0 | J18: TOTAL | M18: =SUBTOTAL(109,M5:M17) -> 0 | Q18: 1.Recette carburant | X18: =X16 -> 0
A19: Ecart | B19: =B18-B17 -> 206 | F19: =F18-F17 -> 255 | Q19: 2.Recette Lubrifiants | X19: =G40 -> 0
A20: Lubrifiants | Q20: 3.recette Boutique | X20: =K40 -> 0
A21: Désignation | B21: Stock ouverture | C21: Entrée | D21: Stock total | E21: Stock fermeture | F21: Vente | G21: P.U | H21: Montant | J21: ACTIVTES DES BAIES | M21: DETAIL DES CREDITS PAYES CE JOURS CI | Q21: 4.Cumul recettes | X21: =SUM(X18:Z20) -> 0
A22: PERFO HDX 700 | B22: 0 | C22: 0 | D22: =SUM(B22:C23) -> 0 | E22: 0 | F22: =D22-E22 -> 0 | H22: =F22*G22 -> 0 | J22: DESIGNATION | K22: MONTANT | M22: NOM & PRENOM DU CLIENT | O22: MONTANT | Q22: 5.Credit de la journée (à deduire) | X22: =M18 -> 0
Q23: 6.Vente au comptant | X23: =X21-X22 -> 0
A24: ATLANTIS 5000 (4L) | B24: 0 | C24: 0 | D24: =SUM(B24:C25) -> 0 | E24: 0 | F24: =D24-E24 -> 0 | H24: =F24*G24 -> 0 | Q24: 7.Credits anterieurs ancaissés | X24: =O39 -> 0
Q25: 8.Total des encaissements | X25: =X23+X24 -> 0
A26: ATLANTIS 5000 (1L) | B26: 0 | C26: 0 | D26: =SUM(B26:C27) -> 0 | E26: 0 | F26: =D26-E26 -> 0 | H26: =F26*G26 -> 0 | Q26: DEPENSE DE LA JOURNEE (A DEDUIRE)
A28: EVOLUTION 300 (5L) | B28: 0 | C28: 0 | D28: =SUM(B28:C29) -> 0 | E28: 0 | F28: =D28-E28 -> 0 | H28: =F28*G28 -> 0 | Q28: RATION
Q29: APPRO-GROUPE | X29: =T29*570 -> 0
A30: EVOLUTION 300 (1L) | B30: 0 | C30: 0 | D30: =SUM(B30:C31) -> 0 | E30: 0 | F30: =D30-E30 -> 0 | H30: =F30*G30 -> 0 | Q30: FACTURES
Q31: DIVERS
A32: GEAR ELF | B32: 0 | C32: 0 | D32: =SUM(B32:C33) -> 0 | E32: 0 | F32: =D32-E32 -> 0 | H32: =F32*G32 -> 0 | Q32: REMISE
Q33: SALAIRE ET DEPLACEMENT GERANT
A34: ELFMATIC | B34: 0 | C34: 0 | D34: =SUM(B34:C35) -> 0 | E34: 0 | F34: =D34-E34 -> 0 | H34: =F34*G34 -> 0 | Q34: Total des depenses | X34: =SUM(X28:Z33) -> 0
A36: BRAKE FLUID | B36: 0 | C36: 0 | D36: =SUM(B36:C37) -> 0 | E36: 0 | F36: =D36-E36 -> 0 | H36: =F36*G36 -> 0 | Q36: 10.Montant net en caisse | X36: =X25-X34 -> 0
Q37: 11.Versement banque
A38: ATF | B38: 0 | C38: 0 | D38: =SUM(B38:C39) -> 0 | E38: 0 | F38: =D38-E38 -> 0 | H38: =F38*G38 -> 0 | Q38: 12.Solde en caisse fin journée | X38: =X36-X37 -> 0
M39: TOTAL | O39: =SUM(O23:O38) -> 0 | Q39: 13.Ecart de caisse
A40: TOTAL | G40: =SUM(H22:H39) -> 0 | K40: =SUM(K23:K38) -> 0 | Q40: OBSERVATIONS

Sheet Menu
B3: 2020-02-01 | D3: =B3+10 -> 2020-02-11 | F3: =D3+11 -> 2020-02-22
B4: =B3+1 -> 2020-02-02 | D4: =D3+1 -> 2020-02-12 | F4: =F3+1 -> 2020-02-23
B5: =B4+1 -> 2020-02-03 | D5: =D4+1 -> 2020-02-13 | F5: =F4+1 -> 2020-02-24
B6: 2020-02-04 | D6: 2020-02-14 | F6: 2020-02-25
B7: 2020-02-05 | D7: 2020-02-15 | F7: 2020-02-26
B8: 2020-02-06 | D8: 2020-02-16 | F8: 2020-02-27
B9: 2020-02-07 | D9: 2020-02-17 | F9: 2020-02-28
B10: 2020-02-08 | D10: 2020-02-18 | F10: 2020-02-29
B11: 2020-02-09 | D11: 2020-02-19 | F11: 2020-01-30
B12: 2020-02-10 | D12: 2020-02-20 | F12: 2020-01-31
D13: 2020-02-21
